bitfinex-derivatives/quotes_SOLF0:USTF0_20250712
["timestamp","ask_amount","ask_price","bid_price","bid_amount"]
[1752303967943,3.29,163.3,163.29,9.4013]
[1752303968337,178.48,163.36,163.33,6.1197]
[1752303968944,3.29,163.35,163.33,6.16677433]
[1752303969943,9.4091,163.35,163.33,0.04707433]
[1752303970138,3.29,163.34,163.33,0.04707433]
[1752303970643,3.29,163.34,163.33,6.16687433]
[1752303974149,3.29,163.34,163.33,0.04707433]
[1752303974545,3.29,163.34,163.28,3.28]
[1752303974745,6.1197,163.34,163.3,6.1207]
[1752303974947,3.4,163.33,163.3,6.1207]
[1752303975246,3.4,163.33,163.26,3.39]
[1752303975750,3.4,163.3,163.26,3.39]
[1752303976048,3.4,163.29,163.26,3.39]
[1752303976247,3.4,163.29,163.28,6.1217]
[1752303976447,3.4,163.29,163.28,9.5117]
[1752303986156,3.4,163.29,163.28,6.1217]
[1752303988255,3.4,163.29,163.28,9.5117]
[1752303992263,0.04496873,163.31,163.3,6.1209]
[1752303992463,0.04496873,163.31,163.3,9.5109]
[1752303992857,3.44496873,163.31,163.3,9.5109]
[1752303993259,3.44496873,163.31,163.3,6.1209]
[1752303995664,3.44496873,163.31,163.3,9.5109]
[1752304001767,5.14352193,163.37,163.33,3.39]
[1752304001972,528.72,163.39,163.33,3.39]
[1752304002362,3.4,163.38,163.33,3.39]
[1752304002667,3.4,163.38,163.37,6.1181]
[1752304002977,3.4,163.38,163.37,9.5081]
[1752304006876,3.5,163.41,163.37,3.39]
[1752304007374,3.5,163.41,163.4,6.1172]
[1752304007975,3.5,163.41,163.4,9.5972]
[1752304008181,712.79203598,163.47,163.43,6.116]
[1752304008778,3.5,163.46,163.43,6.1559184]
[1752304009172,9.6149,163.46,163.43,0.0399184]
[1752304009377,3.5,163.45,163.43,0.0399184]
[1752304009575,5.14352193,163.49,163.44,3.48]
[1752304009878,178.06,163.55,163.44,3.48]
[1752304010072,3.5,163.54,163.44,3.48]
[1752304010271,3.5,163.51,163.44,3.48]
[1752304010471,3.5,163.51,163.47,3.52220933]
[1752304010875,3.5,163.51,163.48,6.1141]
[1752304011678,3.5,163.51,163.47,3.52220933]
[1752304011679,3.5,163.51,163.49,6.1138]
[1752304013288,3.5,163.51,163.48,6.1141]
[1752304014190,3.5,163.51,163.48,9.5941]
[1752304014590,3.5,163.51,163.49,9.5937]
[1752304015685,3.5,163.51,163.5,6.1134]
[1752304015884,3.5,163.51,163.5,9.5934]
[1752304017782,3.5,163.51,163.5,6.1134]
[1752304018994,3.5,163.51,163.5,9.5934]
[1752304019293,3.5,163.51,163.5,6.1134]
[1752304019592,3.5,163.51,163.48,3.48]
[1752304019787,3.5,163.51,163.47,3.52220933]
[1752304020183,3.5,163.51,163.49,6.1135]
[1752304020388,3.5,163.51,163.48,3.48]
[1752304021093,3.5,163.51,163.47,3.52220933]
[1752304021794,3.5,163.51,163.48,6.1139]
[1752304021994,3.5,163.51,163.47,0.04220933]
[1752304022582,3.5,163.52,163.47,0.04220933]
[1752304022882,3.5,163.52,163.47,6.15650933]
[1752304023088,6.1133,163.51,163.47,6.15650933]
[1752304023290,6.1133,163.51,163.47,0.04220933]
[1752304023291,3.5,163.5,163.47,0.04220933]
[1752304023792,3.5,163.5,163.47,6.15660933]
[1752304024287,3.5,163.5,163.48,6.1141]
[1752304024494,3.5,163.54,163.48,3.48]
[1752304024890,3.5,163.53,163.5,6.1134]
[1752304026097,9.6124,163.53,163.5,6.1134]
[1752304026292,3.5,163.52,163.5,6.1134]
[1752304029897,6.1127,163.52,163.49,6.1136]
[1752304030093,3.5,163.51,163.47,0.04220933]
[1752304030498,3.5,163.5,163.47,0.04220933]
[1752304031304,3.5,163.49,163.47,0.04220933]
[1752304032200,3.5,163.49,163.47,6.15650933]
[1752304032591,3.5,163.49,163.47,0.04220933]
[1752304032798,3.5,163.52,163.49,6.1137]
[1752304033900,3.5,163.51,163.5,6.1134]
[1752304034199,3.5,163.51,163.48,3.48]
[1752304034400,9.6131,163.51,163.49,0.04326383]
[1752304034697,9.6131,163.51,163.46,3.48]
[1752304034698,3.5,163.5,163.47,3.48]
[1752304034897,3.5,163.5,163.48,6.15298213]
[1752304039296,3.5,163.5,163.48,0.03888213]
[1752304040100,9.6136,163.5,163.48,0.03888213]
[1752304040298,6.1136,163.5,163.48,0.03888213]
[1752304040501,3.4,163.49,163.48,0.03888213]
[1752304042100,9.5138,163.49,163.48,0.03888213]
[1752304043704,3.4,163.49,163.48,0.03888213]
[1752304044704,3.4,163.49,163.48,6.15308213]
[1752304044905,3.4,163.49,163.48,9.65308213]
[1752304046107,3.4,163.49,163.48,6.15308213]
[1752304048510,3.4,163.49,163.48,0.03888213]
[1752304050504,9.5138,163.49,163.48,0.03888213]
[1752304057117,3.4,163.49,163.48,0.03888213]
[1752304060215,9.5138,163.49,163.48,0.03888213]
[1752304062620,3.4,163.46,163.44,3.5]
[1752304063220,3.4,163.46,163.44,9.6154]
[1752304063620,3.4,163.45,163.4,3.5]
[1752304063920,3.4,163.45,163.38,12.63130817]
[1752304064123,3.4,163.45,163.43,3.5]
[1752304064618,3.4,163.45,163.38,12.63130817]
[1752304064819,3.4,163.45,163.44,3.6]
[1752304065220,3.4,163.45,163.44,9.7157]
[1752304068325,3.4,163.45,163.44,6.1157]
[1752304071726,3.4,163.45,163.44,9.7157]
[1752304072529,3.4,163.45,163.44,6.1157]
[1752304073827,3.4,163.45,163.44,9.7157]
[1752304080536,3.4,163.45,163.44,6.1157]
[1752304081129,3.41,163.44,163.42,3.6]
[1752304081331,3.41,163.44,163.38,3.6]
[1752304081730,3.41,163.44,163.37,3.6]
[1752304081930,8.5571933,163.44,163.37,3.6]
[1752304082130,3.41,163.43,163.37,3.6]
[1752304082735,6.1172,163.4,163.37,9.718]
[1752304082936,3.41,163.39,163.37,9.718]
[1752304083238,3.41,163.38,163.36,6.1186]
[1752304083439,3.41,163.38,163.35,3.6]
[1752304083935,6.118,163.38,163.35,9.7188]
[1752304084131,3.41,163.37,163.32,3.6]
[1752304084332,3.41,163.37,163.31,3.6]
[1752304085434,3.41,163.36,163.31,3.6]
[1752304087137,3.41,163.34,163.33,6.1195]
[1752304087337,3.41,163.34,163.33,9.7195]
[1752304091036,3.41,163.34,163.33,6.1195]
[1752304091242,3.41,163.34,163.33,9.7195]
[1752304092241,3.41,163.34,163.33,6.1195]
[1752304092745,3.41,163.34,163.33,9.7195]
[1752304101251,3.41,163.34,163.33,6.1195]
[1752304101655,3.41,163.34,163.32,6.12]
[1752304102447,3.41,163.34,163.32,9.39]
[1752304102653,3.41,163.34,163.33,6.1198]
[1752304102952,3.41,163.34,163.33,9.3898]
[1752304106148,3.52164848,163.35,163.34,3.27]
[1752304106350,3.52164848,163.35,163.33,9.3898]
[1752304110854,3.48,163.34,163.32,6.12]
[1752304111356,6.1195,163.34,163.31,6.1202]
[1752304111557,3.48,163.33,163.31,6.1202]
[1752304111754,3.48,163.33,163.3,3.27]
[1752304112260,3.48,163.32,163.3,6.1208]
[1752304112955,3.48,163.32,163.3,9.3908]
[1752304113357,6.1202,163.32,163.29,3.27]
[1752304113557,3.48,163.31,163.29,3.27]
[1752304113858,3.48,163.31,163.3,6.1209]
[1752304114048,3.48,163.31,163.3,9.3909]
[1752304118254,3.48,163.31,163.3,3.27]
[1752304119255,3.48,163.31,163.3,9.3909]
[1752304125065,3.48,163.31,163.3,9.6309]
[1752304125964,5.12133026,163.38,163.31,3.51]
[1752304126561,6.1191,163.35,163.32,6.1199]
[1752304126767,3.32,163.34,163.32,9.6299]
[1752304128163,3.32,163.34,163.33,6.1198]
[1752304128361,3.32,163.34,163.33,9.6298]
[1752304129962,182.66133026,163.39,163.3,5.89369148]
[1752304130160,182.66133026,163.39,163.31,3.51]
[1752304130161,177.54,163.39,163.31,3.51]
[1752304130556,3.32,163.37,163.35,6.1188]
[1752304132859,6.1183,163.37,163.34,9.6292]
[1752304133064,3.32,163.36,163.34,9.6292]
[1752304133467,3.32,163.35,163.34,6.1192]
[1752304133669,3.32,163.35,163.32,3.51]
[1752304134472,3.32,163.35,163.33,6.1197]
[1752304134673,182.66133026,163.39,163.33,3.51]
[1752304134858,3.32,163.34,163.33,3.51]
[1752304135064,3.32,163.34,163.33,9.6298]
[1752304140075,3.32,163.34,163.33,6.1198]
[1752304140477,3.32,163.34,163.33,9.6298]
[1752304142179,3.32,163.34,163.33,6.1198]
[1752304144082,3.32,163.34,163.33,9.6298]
[1752304147680,3.32,163.36,163.35,6.1187]
[1752304147980,3.32,163.36,163.35,9.6287]
[1752304150278,5.12133026,163.4,163.35,3.51]
[1752304150488,3.32,163.38,163.35,3.51]
[1752304150984,3.3654931,163.38,163.36,6.1184]
[1752304151979,3.3654931,163.38,163.37,6.1183]
[1752304153283,3.3654931,163.38,163.36,6.1186]
[1752304153473,3.3654931,163.38,163.36,0.03868185]
[1752304154478,3.32,163.37,163.36,0.03868185]
[1752304155078,3.32,163.37,163.36,9.65738185]
[1752304155277,3.5054931,163.38,163.36,3.53868185]
[1752304156183,3.5054931,163.38,163.37,6.1183]
[1752304156386,3.5054931,163.38,163.37,9.6183]
[1752304157488,3.5054931,163.38,163.37,6.1183]
[1752304158087,3.5054931,163.38,163.37,9.6183]
[1752304160289,3.5054931,163.38,163.37,6.1183]
[1752304160789,3.5054931,163.38,163.37,9.6183]
[1752304162788,3.5054931,163.38,163.36,3.53868185]
[1752304162988,3.5054931,163.38,163.36,0.03868185]
[1752304163582,6.1634931,163.38,163.36,0.03868185]
[1752304163788,3.46,163.37,163.36,0.03868185]
[1752304167293,3.46,163.37,163.36,9.65738185]
[1752304167701,3.5054931,163.38,163.36,3.53868185]
[1752304168495,3.5054931,163.38,163.37,6.1183]
[1752304168701,3.5054931,163.38,163.37,9.6183]
[1752304168997,3.5054931,163.38,163.37,6.1183]
[1752304169606,3.5054931,163.38,163.36,9.65718185]
[1752304169898,3.5054931,163.38,163.36,0.03868185]
[1752304172104,9.6235931,163.38,163.36,0.03868185]
[1752304172310,3.46,163.37,163.36,0.03868185]
[1752304180112,9.5783,163.37,163.36,0.03868185]
[1752304180315,3.46,163.37,163.36,0.03868185]
[1752304183521,9.5783,163.37,163.36,0.03868185]
[1752304184020,3.46,163.37,163.36,0.03868185]
[1752304184719,3.46,163.37,163.36,3.53868185]
[1752304186423,3.46,163.37,163.36,9.65738185]
[1752304188623,3.46,163.37,163.36,0.03868185]
[1752304190227,3.46,163.37,163.36,9.54738185]
[1752304191225,3.46,163.37,163.36,3.42868185]
[1752304191627,3.46,163.37,163.36,0.03868185]
[1752304192726,9.5783,163.37,163.36,0.03868185]
[1752304193328,3.46,163.37,163.36,0.03868185]
[1752304204337,9.5783,163.37,163.33,3.39]
[1752304204631,3.46,163.36,163.33,3.39]
[1752304204830,3.46,163.36,163.33,9.5095]
[1752304205520,3.46,163.36,163.34,9.5094]
[1752304208331,9.5787,163.36,163.34,3.39]
[1752304208533,3.46,163.35,163.31,3.39]
[1752304208931,3.46,163.35,163.33,6.1196]
[1752304209127,3.46,163.35,163.33,9.5096]
[1752304210031,3.46,163.35,163.34,3.39]
[1752304213140,3.46,163.35,163.34,9.5094]
[1752304214631,0.04437905,163.37,163.35,6.1189]
[1752304214632,3.31,163.36,163.35,6.1189]
[1752304214939,3.31,163.36,163.35,9.6489]
[1752304215835,0.04437905,163.37,163.35,6.1189]
[1752304215836,3.35437905,163.37,163.35,6.1189]
[1752304216028,3.35437905,163.37,163.36,3.53]
[1752304217731,0.04437905,163.37,163.36,6.1187]
[1752304217938,0.04437905,163.37,163.36,9.6487]
[1752304222539,3.35437905,163.37,163.36,9.6487]
[1752304223639,3.35437905,163.37,163.36,3.53]
[1752304224638,3.35437905,163.37,163.31,3.53]
[1752304226939,6.1189,163.36,163.32,6.12]
[1752304227134,3.31,163.35,163.32,6.12]
[1752304228245,9.4291,163.35,163.32,6.12]
[1752304228442,3.31,163.34,163.32,6.12]
[1752304228742,3.31,163.34,163.32,9.65]
[1752304233448,3.31,163.34,163.33,9.6498]
[1752304233646,3.31,163.36,163.3,3.53]
[1752304234043,0.04526713,163.35,163.34,6.1192]
[1752304234244,3.35526713,163.35,163.34,9.6492]
[1752304242153,3.35526713,163.35,163.34,6.1192]
[1752304243052,3.35526713,163.35,163.33,6.1196]
[1752304245556,3.35526713,163.35,163.32,6.12]
[1752304247747,9.47436713,163.35,163.32,0.04567916]
[1752304247949,3.35526713,163.35,163.32,0.04567916]
[1752304248458,6.1198,163.33,163.32,0.04567916]
[1752304248655,9.5898,163.33,163.32,0.04567916]
[1752304251253,12.05606282,163.35,163.32,0.04567916]
[1752304251459,3.51526713,163.35,163.32,3.36567916]
[1752304251658,0.04526713,163.35,163.32,3.36567916]
[1752304251972,0.04526713,163.35,163.34,9.4394]
[1752304252354,3.51526713,163.35,163.34,9.4394]
[1752304254554,3.51526713,163.35,163.34,6.1194]
[1752304255160,3.51526713,163.35,163.34,9.4394]
[1752304256457,3.51526713,163.35,163.33,6.1196]
[1752304256656,3.51526713,163.35,163.32,3.36567916]
[1752304257058,3.51526713,163.35,163.32,9.48557916]
[1752304258457,3.51526713,163.35,163.33,6.1197]
[1752304258657,3.51526713,163.35,163.33,9.4397]
[1752304259560,3.51526713,163.35,163.34,3.32]
[1752304260455,3.51526713,163.35,163.33,9.4397]
[1752304261060,3.51526713,163.35,163.34,9.4394]
[1752304261262,3.51526713,163.35,163.34,3.32]
[1752304265358,3.51526713,163.35,163.33,3.32]
[1752304266760,3.51526713,163.35,163.32,3.36567916]
[1752304267063,3.51526713,163.35,163.33,6.1197]
[1752304267465,9.63426713,163.35,163.32,3.36567916]
[1752304267664,3.47,163.34,163.32,3.36567916]
[1752304268369,9.5894,163.34,163.32,0.04567916]
[1752304268665,3.47,163.33,163.32,0.04567916]
[1752304270468,9.5898,163.33,163.32,0.04567916]
[1752304273263,0.04526713,163.35,163.32,0.04567916]
[1752304273471,3.47,163.34,163.32,3.36567916]
[1752304274170,3.47,163.34,163.33,6.1197]
[1752304274469,3.47,163.34,163.33,9.4397]
[1752304275772,0.04526713,163.35,163.33,9.4397]
[1752304275970,0.04526713,163.35,163.34,9.4794]
[1752304279778,3.60526713,163.35,163.34,9.4794]
[1752304281278,0.04526713,163.35,163.34,9.4794]
[1752304281481,5.14869411,163.4,163.35,3.36]
[1752304281778,9.6761,163.43,163.35,3.36]
[1752304282084,3.56,163.42,163.4,9.4769]
[1752304282680,3.56,163.42,163.4,3.36]
[1752304282880,3.56,163.41,163.39,9.4774]
[1752304283683,3.56,163.41,163.39,6.1174]
[1752304283883,3.56,163.41,163.38,6.1179]
[1752304284584,3.60448022,163.41,163.38,6.1179]
[1752304285485,3.60448022,163.41,163.38,9.52002971]
[1752304288197,6.16128022,163.41,163.38,3.40212971]
[1752304288387,3.56,163.4,163.38,0.04212971]
[1752304289691,3.56,163.4,163.38,3.40212971]
[1752304290192,3.56,163.4,163.38,9.52002971]
[1752304291186,3.56,163.4,163.38,0.04212971]
[1752304291795,9.6772,163.4,163.38,0.04212971]
[1752304291994,3.56,163.4,163.38,0.04212971]
[1752304292591,9.6775,163.39,163.38,0.04212971]
[1752304292991,3.56,163.39,163.38,0.04212971]
[1752304295394,9.6775,163.39,163.38,0.04212971]
[1752304299394,176.72448022,163.41,163.38,0.04212971]
[1752304299597,176.72448022,163.41,163.4,3.36]
[1752304299797,3.56,163.4,163.38,0.04212971]
[1752304299999,3.56,163.4,163.38,3.40212971]
[1752304300198,3.56,163.4,163.39,3.36]
[1752304300600,3.56,163.4,163.39,9.4773]
[1752304301301,3.56,163.4,163.39,3.36]
[1752304301901,3.56,163.4,163.39,9.4775]
[1752304306198,3.56,163.4,163.39,3.36]
[1752304306909,3.56,163.4,163.38,3.41212971]
[1752304309511,3.45,163.39,163.38,6.16002971]
[1752304310107,3.45,163.39,163.38,9.53002971]
[1752304312611,180.17448022,163.41,163.4,3.37]
[1752304313207,180.17448022,163.41,163.4,9.4872]
[1752304313812,176.72448022,163.41,163.4,9.4872]
[1752304314410,0.04448022,163.41,163.4,9.4872]
[1752304315109,3.49448022,163.41,163.4,9.4872]
[1752304317509,0.04448022,163.41,163.4,9.4872]
[1752304319717,3.45,163.45,163.44,6.1157]
[1752304320015,3.45,163.45,163.44,9.4857]
[1752304320814,176.58,163.47,163.44,3.37]
[1752304321020,3.45,163.46,163.44,3.37]
[1752304322317,3.45,163.46,163.45,9.4853]
[1752304322714,176.58,163.47,163.46,6.1149]
[1752304322920,533.72869411,163.52,163.47,3.37]
[1752304323116,528.58,163.52,163.47,3.37]
[1752304323419,3.45,163.5,163.47,3.37]
[1752304323716,3.45,163.5,163.49,3.37]
[1752304324118,3.45,163.5,163.49,9.4837]
[1752304325716,3.45,163.5,163.49,6.1137]
[1752304326319,3.45,163.5,163.49,9.4837]
[1752304328721,3.45,163.5,163.48,0.03995201]
[1752304329720,3.45,163.5,163.48,6.15385201]
[1752304331022,3.45,163.5,163.48,9.52385201]
[1752304331220,3.45,163.5,163.49,6.1138]
[1752304332720,180.05082796,163.51,163.5,9.4834]
[1752304333821,180.05082796,163.51,163.5,6.1134]
[1752304337531,3.4,163.5,163.48,0.03995201]
[1752304338225,3.4,163.5,163.48,3.47995201]
[1752304339032,3.4,163.5,163.49,6.1138]
[1752304339333,3.4,163.5,163.48,0.03995201]
[1752304340930,3.4,163.5,163.48,3.47995201]
[1752304341131,3.4,163.5,163.49,6.1138]
[1752304342335,3.4,163.5,163.49,9.5538]
[1752304343635,3.4,163.5,163.49,6.1138]
[1752304345536,176.60082796,163.51,163.5,6.1134]
[1752304345739,180.00082796,163.51,163.5,6.1134]
[1752304347136,180.00082796,163.51,163.5,9.5534]
[1752304347940,3.44082796,163.51,163.5,9.5534]
[1752304351541,3.44082796,163.51,163.5,6.1134]
[1752304353143,3.44082796,163.51,163.5,9.5534]
[1752304353535,0.04082796,163.51,163.5,9.5534]
[1752304354341,6.1103,163.59,163.55,3.44]
[1752304354539,6.1103,163.59,163.48,5.93141812]
[1752304354540,3.4,163.58,163.5,3.44]
[1752304354741,3.4,163.57,163.54,6.1116]
[1752304355040,3.4,163.57,163.5,3.44]
[1752304355442,3.4,163.57,163.56,6.1112]
[1752304355834,3.4,163.57,163.53,3.44]
[1752304356142,3.4,163.57,163.55,6.1115]
[1752304356339,3.4,163.57,163.55,9.5515]
[1752304356541,3.4,163.57,163.55,6.1115]
[1752304357945,3.4,163.57,163.54,6.1118]
[1752304358348,3.4,163.57,163.52,3.48621196]
[1752304358541,5.89146611,163.56,163.52,6.15861196]
[1752304358738,3.4,163.55,163.52,6.15861196]
[1752304359044,3.4,163.55,163.53,6.1122]
[1752304359245,3.4,163.55,163.53,3.44]
[1752304359947,3.4,163.55,163.54,6.1119]
[1752304363050,3.4,163.55,163.53,9.5522]
[1752304363548,3.4,163.55,163.53,6.1122]
[1752304364150,3.4,163.53,163.52,0.04621196]
[1752304364454,3.4,163.53,163.41,3.44]
[1752304364653,3.35,163.48,163.47,6.1143]
[1752304365154,5.89146611,163.51,163.47,3.61]
[1752304365452,176.36,163.52,163.47,3.61]
[1752304365453,3.35,163.49,163.48,9.7242]
[1752304365847,3.35,163.49,163.48,3.61]
[1752304366154,3.35,163.49,163.47,0.04273105]
[1752304367255,3.35,163.49,163.47,6.15723105]
[1752304369451,3.35,163.48,163.47,9.76723105]
[1752304371350,0.04053936,163.5,163.47,3.65273105]
[1752304371553,3.39053936,163.5,163.47,3.65273105]
[1752304372958,0.04053936,163.5,163.47,3.65273105]
[1752304373160,0.04053936,163.5,163.49,6.1138]
[1752304373461,0.04053936,163.5,163.49,9.7238]
[1752304374852,3.35,163.54,163.53,9.7223]
[1752304375252,3.35,163.54,163.53,6.1123]
[1752304376460,3.35,163.54,163.53,9.7223]
[1752304381456,5.89146611,163.58,163.52,0.04577365]
[1752304381457,3.35,163.58,163.55,3.61]
[1752304381658,5.89146611,163.6,163.53,3.61]
[1752304381859,3.35,163.59,163.53,3.61]
[1752304382266,5.89146611,163.6,163.54,6.1119]
[1752304382267,6.1108,163.58,163.54,6.1119]
[1752304382570,3.35,163.57,163.54,9.7219]
[1752304382766,3.35,163.57,163.55,6.1115]
[1752304383169,9.4608,163.57,163.54,3.65051857]
[1752304383369,3.35,163.56,163.54,9.76231857]
[1752304385466,3.35,163.55,163.54,0.04051857]
[1752304386175,9.4615,163.55,163.54,0.04051857]
[1752304386471,3.35,163.55,163.54,0.04051857]
[1752304387871,3.35,163.55,163.54,3.65051857]
[1752304388061,3.35,163.61,163.54,3.65051857]
[1752304388467,3.35,163.61,163.55,9.7213]
[1752304389872,3.35,163.58,163.55,9.7213]
[1752304390273,11.245651,163.63,163.58,3.61]
[1752304390473,3.35,163.62,163.56,3.61]
[1752304390864,3.35,163.59,163.57,0.04041106]
[1752304391274,11.02851711,163.63,163.57,3.65041106]
[1752304391568,3.35,163.58,163.57,3.65041106]
[1752304392074,3.35,163.58,163.57,0.04041106]
[1752304393182,3.35,163.53,163.49,3.61]
[1752304393374,3.35,163.53,163.5,3.61]
[1752304393676,3.35,163.53,163.51,3.61]
[1752304393875,3.35,163.53,163.5,3.61]
[1752304394178,3.35,163.53,163.5,3.65527845]
[1752304394675,3.31,163.58,163.51,3.27]
[1752304395071,6.1114,163.56,163.51,9.3827]
[1752304395270,3.31,163.58,163.51,3.27]
[1752304396773,3.31,163.56,163.53,6.1122]
[1752304397375,9.4212,163.56,163.53,0.04186893]
[1752304397575,3.31,163.55,163.53,0.04186893]
[1752304397770,3.31,163.58,163.53,6.15406893]
[1752304397972,3.31,163.58,163.53,9.42406893]
[1752304398279,3.31,163.58,163.54,3.27]
[1752304398673,8.447051,163.58,163.54,3.27]
[1752304398976,3.31,163.57,163.54,3.27]
[1752304399177,3.31,163.56,163.54,3.27]
[1752304399372,3.31,163.55,163.54,3.27]
[1752304399577,528.12,163.61,163.57,3.27]
[1752304399578,533.257051,163.61,163.57,3.27]
[1752304399781,6.1097,163.6,163.57,3.27]
[1752304400076,3.31,163.59,163.58,3.27]
[1752304400275,5.137051,163.61,163.58,3.27]
[1752304400478,184.457051,163.63,163.58,3.27]
[1752304400678,3.31,163.61,163.58,3.27]
[1752304401178,3.31,163.61,163.6,3.27]
[1752304402169,3.31,163.61,163.6,9.3797]
[1752304403275,184.457051,163.63,163.6,9.3797]
[1752304403473,3.31,163.61,163.6,9.3797]
[1752304404581,3.31,163.62,163.6,9.3797]
[1752304404879,5.137051,163.64,163.62,3.27]
[1752304405082,5.137051,163.65,163.62,3.27]
[1752304405384,5.137051,163.66,163.63,3.27]
[1752304405578,8.447051,163.66,163.63,3.27]
[1752304406079,3.31,163.66,163.63,3.27]
[1752304406877,3.31,163.66,163.63,9.3783]
[1752304409684,3.31,163.66,163.63,6.1083]
[1752304409884,3.31,163.66,163.63,9.3783]
[1752304411783,3.31,163.69,163.63,3.27]
[1752304412482,188.797051,163.71,163.64,3.27]
[1752304412781,3.31,163.71,163.65,3.27]
[1752304413174,3.31,163.71,163.68,6.1064]
[1752304413381,3.31,163.71,163.68,9.3764]
[1752304414184,9.4156,163.71,163.68,3.27]
[1752304414382,3.31,163.7,163.68,3.27]
[1752304415387,3.31,163.7,163.68,9.3766]
[1752304415576,3.31,163.72,163.67,3.27]
[1752304416184,3.31,163.72,163.68,9.3764]
[1752304416380,3.31,163.72,163.69,3.27]
[1752304416883,6.1052,163.72,163.69,3.27]
[1752304417085,3.31,163.71,163.69,3.27]
[1752304418082,3.31,163.71,163.68,6.1064]
[1752304418285,3.31,163.71,163.68,9.3764]
[1752304419993,3.31,163.72,163.66,3.3094694]
[1752304420186,3.31,163.72,163.66,0.0394694]
[1752304420485,6.1062,163.7,163.66,6.1465694]
[1752304420787,3.31,163.69,163.66,9.4165694]
[1752304421086,3.31,163.69,163.67,3.27]
[1752304421284,3.31,163.69,163.67,9.377]
[1752304421483,3.31,163.69,163.67,3.27]
[1752304421679,3.31,163.69,163.66,0.0394694]
[1752304421885,3.31,163.69,163.66,9.4166694]
[1752304422188,3.31,163.68,163.67,3.27]
[1752304422485,3.31,163.68,163.67,9.3768]
[1752304422680,3.31,163.68,163.66,0.0394694]
[1752304422886,3.31,163.66,163.63,6.1082]
[1752304423087,3.31,163.66,163.56,3.27]
[1752304423483,3.31,163.71,163.62,5.89146611]
[1752304423684,3.31,163.71,163.63,3.27]
[1752304424190,3.31,163.7,163.69,3.27]
[1752304424578,3.31,163.7,163.69,9.3763]
[1752304424782,183.62,163.74,163.67,3.39]
[1752304424983,3.43,163.68,163.67,3.39]
[1752304425180,183.62,163.74,163.67,3.39]
[1752304425385,3.43,163.7,163.68,3.39]
[1752304425591,3.43,163.7,163.68,9.4966]
[1752304426188,3.43,163.69,163.68,9.4966]
[1752304427689,3.43,163.69,163.68,3.39]
[1752304427882,5.11254314,163.78,163.69,3.39]
[1752304428083,17.04181049,163.91,163.58,12.2209]
[1752304428084,5.11254314,163.84,163.72,3.39]
[1752304428384,3.43,163.83,163.76,3.39]
[1752304428586,3.43,163.84,163.76,3.39]
[1752304428787,3.43,163.83,163.76,3.39]
[1752304428992,3.43,163.81,163.74,3.39]
[1752304429388,3.43,163.81,163.72,3.39]
[1752304429593,6.1027,163.79,163.72,9.4952]
[1752304429794,3.43,163.78,163.72,3.39]
[1752304430493,5.86453554,163.77,163.7,3.39]
[1752304430688,3.43,163.76,163.7,3.39]
[1752304430885,0.04161675,163.77,163.73,3.39]